[Event "Titled Tuesday Blitz August 09 Late 2022"]
[White "Blanco Ronquillo, Humberto L."]
[Black "Hambleton, Aman"]
[WhiteFideId "3504239"]
[BlackFideId "2606577"]
[WhiteElo "2425"]
[BlackElo "2538"]
[Result "1-0"]
[Round "09"]
[TimeControl "180+1"]
[Date "2022.08.09"]
[WhiteClock "0:00:29"]
[BlackClock "0:00:02"]

1. d4 {[%clk 0:02:54]}  Nf6 {[%clk 0:02:59]} 2. c4 {[%clk 0:02:54]}  e6 {[%clk 0:03:00]} 3. Nf3 {[%clk 0:02:54]}  b6 {[%clk 0:03:00]} 4. g3 {[%clk 0:02:52]}  Ba6 {[%clk 0:03:01]} 5. Qa4 {[%clk 0:02:53]}  Bb7 {[%clk 0:02:56]} 6. Bg2 {[%clk 0:02:53]}  c5 {[%clk 0:02:57]} 7. O-O {[%clk 0:02:53]}  cxd4 {[%clk 0:02:54]} 8. Rd1 {[%clk 0:02:54]}  Be7 {[%clk 0:02:44]} 9. Bf4 {[%clk 0:02:53]}  O-O {[%clk 0:02:38]} 10. Nxd4 {[%clk 0:02:53]}  Bxg2 {[%clk 0:02:37]} 11. Kxg2 {[%clk 0:02:54]}  Qc8 {[%clk 0:02:10]} 12. Nb5 {[%clk 0:02:53]}  Qc6+ {[%clk 0:02:09]} 13. f3 {[%clk 0:02:53]}  a6 {[%clk 0:02:10]} 14. N5c3 {[%clk 0:02:52]}  Qb7 {[%clk 0:01:24]} 15. Nd2 {[%clk 0:02:43]}  Rc8 {[%clk 0:00:45]} 16. Rac1 {[%clk 0:01:45]}  Nc6 {[%clk 0:00:42]} 17. Nb3 {[%clk 0:01:05]}  h6 {[%clk 0:00:34]} 18. Bd6 {[%clk 0:01:05]}  Bxd6 {[%clk 0:00:31]} 19. Rxd6 {[%clk 0:01:06]}  Ne5 {[%clk 0:00:32]} 20. Nd2 {[%clk 0:00:59]}  Nxc4 {[%clk 0:00:13]} 21. Nxc4 {[%clk 0:00:58]}  b5 {[%clk 0:00:13]} 22. Na5 {[%clk 0:00:56]}  Qc7 {[%clk 0:00:10]} 23. Qb4 {[%clk 0:00:55]}  Nd5 {[%clk 0:00:04]} 24. Nxd5 {[%clk 0:00:38]}  Qxc1 {[%clk 0:00:05]} 25. Ne7+ {[%clk 0:00:39]}  Kh7 {[%clk 0:00:04]} 26. Nxc8 {[%clk 0:00:39]}  Rxc8 {[%clk 0:00:04]} 27. Rxd7 {[%clk 0:00:32]}  Rc2 {[%clk 0:00:04]} 28. Qe4+ {[%clk 0:00:30]}  f5 {[%clk 0:00:03]} 29. Qe5 {[%clk 0:00:30]}  Qe1 {[%clk 0:00:02]} 30. Qxg7# {[%clk 0:00:29]} 1-0


[Site "https://www.chess.com"]

[Event "Titled Tuesday Blitz August 09 Late 2022"]
[White "Clarke, Brandon G I"]
[Black "Janaszak, Dawid"]
[WhiteFideId "400319"]
[BlackFideId "1119206"]
[WhiteElo "2414"]
[BlackElo "2165"]
[Result "0-1"]
[Round "09"]
[TimeControl "180+1"]
[Date "2022.08.09"]
[WhiteClock "0:00:04"]
[BlackClock "0:00:33"]

1. e4 {[%clk 0:03:00]}  c5 {[%clk 0:02:59]} 2. Nf3 {[%clk 0:03:00]}  Nc6 {[%clk 0:02:59]} 3. Nc3 {[%clk 0:02:58]}  g6 {[%clk 0:02:58]} 4. d4 {[%clk 0:02:54]}  cxd4 {[%clk 0:02:59]} 5. Nxd4 {[%clk 0:02:55]}  Bg7 {[%clk 0:02:59]} 6. Be3 {[%clk 0:02:56]}  Nf6 {[%clk 0:02:59]} 7. Bc4 {[%clk 0:02:56]}  O-O {[%clk 0:02:59]} 8. Bb3 {[%clk 0:02:56]}  Re8 {[%clk 0:02:59]} 9. f3 {[%clk 0:02:56]}  e6 {[%clk 0:02:51]} 10. f4 {[%clk 0:02:56]}  Nd5 {[%clk 0:02:16]} 11. Nxd5 {[%clk 0:01:56]}  exd5 {[%clk 0:02:15]} 12. Bxd5 {[%clk 0:01:57]}  Qb6 {[%clk 0:02:04]} 13. Nf5 {[%clk 0:01:47]}  Qxb2 {[%clk 0:01:57]} 14. Nxg7 {[%clk 0:01:47]}  Qc3+ {[%clk 0:01:52]} 15. Kf2 {[%clk 0:01:45]}  Qxg7 {[%clk 0:01:50]} 16. Rb1 {[%clk 0:01:43]}  d6 {[%clk 0:01:46]} 17. Qd3 {[%clk 0:01:39]}  Be6 {[%clk 0:01:21]} 18. Rxb7 {[%clk 0:01:21]}  Bxd5 {[%clk 0:01:21]} 19. Qxd5 {[%clk 0:01:19]}  Nd8 {[%clk 0:01:10]} 20. Rd7 {[%clk 0:00:58]}  Rc8 {[%clk 0:01:05]} 21. Rc1 {[%clk 0:00:50]}  Qb2 {[%clk 0:01:05]} 22. Qb3 {[%clk 0:00:30]}  Qf6 {[%clk 0:00:53]} 23. Kf3 {[%clk 0:00:28]}  Ne6 {[%clk 0:00:50]} 24. Qd5 {[%clk 0:00:24]}  Rc3 {[%clk 0:00:47]} 25. g3 {[%clk 0:00:18]}  Nd4+ {[%clk 0:00:44]} 26. Kf2 {[%clk 0:00:18]}  Nxc2 {[%clk 0:00:44]} 27. Bxa7 {[%clk 0:00:13]}  Nb4 {[%clk 0:00:43]} 28. Qxf7+ {[%clk 0:00:03]}  Qxf7 {[%clk 0:00:43]} 29. Rxf7 {[%clk 0:00:03]}  Rxc1 {[%clk 0:00:39]} 30. Rb7 {[%clk 0:00:04]}  Rc2+ {[%clk 0:00:37]} 31. Ke3 {[%clk 0:00:04]}  Rxa2 {[%clk 0:00:36]} 32. Bd4 {[%clk 0:00:03]}  Nc2+ {[%clk 0:00:36]} 33. Kd3 {[%clk 0:00:03]}  Nxd4 {[%clk 0:00:36]} 34. Kxd4 {[%clk 0:00:04]}  Rxh2 {[%clk 0:00:35]} 35. Kd5 {[%clk 0:00:03]}  Rd2+ {[%clk 0:00:35]} 36. Kc6 {[%clk 0:00:03]}  Rxe4 {[%clk 0:00:35]} 37. Rb8+ {[%clk 0:00:03]}  Kg7 {[%clk 0:00:35]} 38. Rb7+ {[%clk 0:00:04]}  Kh6 {[%clk 0:00:35]} 39. Rb8 {[%clk 0:00:04]}  Re3 {[%clk 0:00:33]} 0-1


[Site "https://www.chess.com"]

[Event "Titled Tuesday Blitz August 09 Late 2022"]
[White "Demchenko, Anton"]
[Black "Pulpan, Jakub"]
[WhiteFideId "4160258"]
[BlackFideId "302759"]
[WhiteElo "2539"]
[BlackElo "2451"]
[Result "0-1"]
[Round "09"]
[TimeControl "180+1"]
[Date "2022.08.09"]
[WhiteClock "0:00:01"]
[BlackClock "0:00:11"]

1. e4 {[%clk 0:03:00]}  c5 {[%clk 0:02:39]} 2. Nf3 {[%clk 0:03:00]}  Nc6 {[%clk 0:02:40]} 3. Bb5 {[%clk 0:02:59]}  d6 {[%clk 0:02:41]} 4. O-O {[%clk 0:02:58]}  Bd7 {[%clk 0:02:41]} 5. Re1 {[%clk 0:02:58]}  Nf6 {[%clk 0:02:41]} 6. c3 {[%clk 0:02:57]}  a6 {[%clk 0:02:42]} 7. Bc4 {[%clk 0:02:56]}  b5 {[%clk 0:02:39]} 8. Bf1 {[%clk 0:02:54]}  Bg4 {[%clk 0:02:37]} 9. a4 {[%clk 0:02:44]}  Rb8 {[%clk 0:02:37]} 10. axb5 {[%clk 0:02:39]}  axb5 {[%clk 0:02:38]} 11. Na3 {[%clk 0:02:15]}  b4 {[%clk 0:02:36]} 12. Nc4 {[%clk 0:02:08]}  e6 {[%clk 0:02:08]} 13. Qa4 {[%clk 0:01:57]}  Qd7 {[%clk 0:02:02]} 14. e5 {[%clk 0:01:48]}  Bxf3 {[%clk 0:02:00]} 15. exf6 {[%clk 0:01:47]}  Bd5 {[%clk 0:01:55]} 16. Ne3 {[%clk 0:01:44]}  Be4 {[%clk 0:01:45]} 17. Bb5 {[%clk 0:01:38]}  Qb7 {[%clk 0:01:19]} 18. Ba6 {[%clk 0:01:29]}  Qd7 {[%clk 0:01:11]} 19. d3 {[%clk 0:01:29]}  Bxd3 {[%clk 0:00:56]} 20. Bxd3 {[%clk 0:01:27]}  Ne5 {[%clk 0:00:56]} 21. Qxd7+ {[%clk 0:01:20]}  Kxd7 {[%clk 0:00:57]} 22. Ra7+ {[%clk 0:01:09]}  Kc6 {[%clk 0:00:56]} 23. Be2 {[%clk 0:01:03]}  Rb7 {[%clk 0:00:47]} 24. Ra6+ {[%clk 0:00:55]}  Rb6 {[%clk 0:00:44]} 25. Rxb6+ {[%clk 0:00:51]}  Kxb6 {[%clk 0:00:45]} 26. f4 {[%clk 0:00:51]}  Nc6 {[%clk 0:00:45]} 27. fxg7 {[%clk 0:00:42]}  Bxg7 {[%clk 0:00:43]} 28. Bd2 {[%clk 0:00:43]}  Ra8 {[%clk 0:00:42]} 29. Rb1 {[%clk 0:00:37]}  d5 {[%clk 0:00:40]} 30. cxb4 {[%clk 0:00:10]}  c4 {[%clk 0:00:39]} 31. Nc2 {[%clk 0:00:09]}  Kc7 {[%clk 0:00:29]} 32. b5 {[%clk 0:00:08]}  Nd4 {[%clk 0:00:20]} 33. Nxd4 {[%clk 0:00:09]}  Bxd4+ {[%clk 0:00:21]} 34. Kf1 {[%clk 0:00:10]}  Rb8 {[%clk 0:00:20]} 35. Bc3 {[%clk 0:00:09]}  Bc5 {[%clk 0:00:20]} 36. Be5+ {[%clk 0:00:07]}  Bd6 {[%clk 0:00:21]} 37. Ke1 {[%clk 0:00:04]}  Rxb5 {[%clk 0:00:20]} 38. Kd2 {[%clk 0:00:04]}  f6 {[%clk 0:00:20]} 39. Bxd6+ {[%clk 0:00:03]}  Kxd6 {[%clk 0:00:21]} 40. Kc2 {[%clk 0:00:03]}  Kc5 {[%clk 0:00:18]} 41. Ra1 {[%clk 0:00:03]}  d4 {[%clk 0:00:19]} 42. Bf3 {[%clk 0:00:02]}  d3+ {[%clk 0:00:19]} 43. Kc1 {[%clk 0:00:03]}  Kd4 {[%clk 0:00:19]} 44. Ra6 {[%clk 0:00:03]}  e5 {[%clk 0:00:19]} 45. fxe5 {[%clk 0:00:03]}  fxe5 {[%clk 0:00:20]} 46. Rd6+ {[%clk 0:00:03]}  Ke3 {[%clk 0:00:21]} 47. Rd5 {[%clk 0:00:03]}  d2+ {[%clk 0:00:11]} 48. Kd1 {[%clk 0:00:03]}  Rxb2 {[%clk 0:00:09]} 49. Rxe5+ {[%clk 0:00:03]}  Kd3 {[%clk 0:00:10]} 50. Be2+ {[%clk 0:00:03]}  Kc3 {[%clk 0:00:11]} 51. Re3+ {[%clk 0:00:03]}  Kd4 {[%clk 0:00:10]} 52. Ra3 {[%clk 0:00:02]}  c3 {[%clk 0:00:11]} 53. Ra4+ {[%clk 0:00:01]}  Ke3 {[%clk 0:00:11]} 0-1


[Site "https://www.chess.com"]

[Event "Titled Tuesday Blitz August 09 Late 2022"]
[White "Dimitrov, Atanas"]
[Black "Wachinger, Guenther"]
[WhiteFideId "2901315"]
[BlackFideId "4604261"]
[WhiteElo "2671"]
[BlackElo "2212"]
[Result "1-0"]
[Round "09"]
[TimeControl "180+1"]
[Date "2022.08.09"]
[WhiteClock "0:01:28"]
[BlackClock "0:00:55"]

1. Nf3 {[%clk 0:03:00]}  b5 {[%clk 0:02:54]} 2. e4 {[%clk 0:02:58]}  Bb7 {[%clk 0:02:54]} 3. e5 {[%clk 0:02:52]}  b4 {[%clk 0:02:54]} 4. d4 {[%clk 0:02:53]}  d6 {[%clk 0:02:53]} 5. Bd3 {[%clk 0:02:52]}  dxe5 {[%clk 0:02:51]} 6. dxe5 {[%clk 0:02:52]}  e6 {[%clk 0:02:47]} 7. O-O {[%clk 0:02:52]}  Bc5 {[%clk 0:02:46]} 8. Qe2 {[%clk 0:02:52]}  Nd7 {[%clk 0:02:40]} 9. Rd1 {[%clk 0:02:48]}  Qb8 {[%clk 0:02:39]} 10. Nbd2 {[%clk 0:02:44]}  Ne7 {[%clk 0:02:37]} 11. Ne4 {[%clk 0:02:43]}  Bb6 {[%clk 0:02:34]} 12. Be3 {[%clk 0:02:30]}  Nd5 {[%clk 0:02:21]} 13. Bxb6 {[%clk 0:02:29]}  axb6 {[%clk 0:02:22]} 14. Qd2 {[%clk 0:02:17]}  Nc5 {[%clk 0:02:11]} 15. Nxc5 {[%clk 0:02:12]}  bxc5 {[%clk 0:02:11]} 16. Qg5 {[%clk 0:02:11]}  O-O {[%clk 0:01:39]} 17. Bxh7+ {[%clk 0:01:34]}  Kxh7 {[%clk 0:01:05]} 18. Qh5+ {[%clk 0:01:33]}  Kg8 {[%clk 0:01:04]} 19. Ng5 {[%clk 0:01:34]}  Rc8 {[%clk 0:01:00]} 20. Qxf7+ {[%clk 0:01:32]}  Kh8 {[%clk 0:01:01]} 21. Rd3 {[%clk 0:01:29]}  Nf4 {[%clk 0:00:55]} 22. Qxf4 {[%clk 0:01:28]} 1-0


[Site "https://www.chess.com"]

[Event "Titled Tuesday Blitz August 09 Late 2022"]
[White "Ekdyshman, Mikhail"]
[Black "Mardov, Dimitar"]
[WhiteFideId "4149416"]
[BlackFideId "30919495"]
[WhiteElo "2146"]
[BlackElo "2185"]
[Result "1-0"]
[Round "09"]
[TimeControl "180+1"]
[Date "2022.08.09"]
[WhiteClock "0:00:06"]
[BlackClock "0:00:01"]

1. e4 {[%clk 0:03:00]}  e5 {[%clk 0:02:59]} 2. Nf3 {[%clk 0:03:00]}  Nc6 {[%clk 0:02:59]} 3. Nc3 {[%clk 0:03:01]}  g6 {[%clk 0:02:59]} 4. d4 {[%clk 0:02:55]}  exd4 {[%clk 0:03:00]} 5. Nxd4 {[%clk 0:02:55]}  Bg7 {[%clk 0:03:00]} 6. Nxc6 {[%clk 0:02:52]}  bxc6 {[%clk 0:03:01]} 7. Be2 {[%clk 0:02:48]}  d6 {[%clk 0:03:00]} 8. O-O {[%clk 0:02:48]}  Ne7 {[%clk 0:03:00]} 9. Be3 {[%clk 0:02:35]}  O-O {[%clk 0:02:58]} 10. Bd4 {[%clk 0:02:34]}  Bh6 {[%clk 0:02:50]} 11. Bf6 {[%clk 0:02:29]}  Bg7 {[%clk 0:02:47]} 12. Bxg7 {[%clk 0:02:24]}  Kxg7 {[%clk 0:02:48]} 13. Qd4+ {[%clk 0:02:24]}  Kg8 {[%clk 0:02:48]} 14. Rad1 {[%clk 0:02:15]}  Be6 {[%clk 0:02:38]} 15. f4 {[%clk 0:02:12]}  f5 {[%clk 0:02:37]} 16. Bc4 {[%clk 0:01:55]}  Qc8 {[%clk 0:02:33]} 17. Rfe1 {[%clk 0:01:51]}  Bf7 {[%clk 0:02:32]} 18. e5 {[%clk 0:01:37]}  d5 {[%clk 0:02:20]} 19. e6 {[%clk 0:01:12]}  Bxe6 {[%clk 0:02:05]} 20. Bb3 {[%clk 0:01:12]}  Rf7 {[%clk 0:01:42]} 21. Na4 {[%clk 0:01:04]}  Bd7 {[%clk 0:01:34]} 22. Nc5 {[%clk 0:00:53]}  Qd8 {[%clk 0:01:33]} 23. c4 {[%clk 0:00:44]}  Be8 {[%clk 0:01:01]} 24. Re5 {[%clk 0:00:39]}  a5 {[%clk 0:00:52]} 25. Rde1 {[%clk 0:00:30]}  a4 {[%clk 0:00:52]} 26. Bxa4 {[%clk 0:00:27]}  Rxa4 {[%clk 0:00:25]} 27. Nxa4 {[%clk 0:00:26]}  c5 {[%clk 0:00:23]} 28. Qxc5 {[%clk 0:00:22]}  Kf8 {[%clk 0:00:21]} 29. Rxd5 {[%clk 0:00:16]}  Qb8 {[%clk 0:00:15]} 30. Rde5 {[%clk 0:00:11]}  Qd8 {[%clk 0:00:08]} 31. Nc3 {[%clk 0:00:10]}  Qd6 {[%clk 0:00:09]} 32. Qxd6 {[%clk 0:00:09]}  cxd6 {[%clk 0:00:10]} 33. R5e3 {[%clk 0:00:05]}  Bc6 {[%clk 0:00:10]} 34. Rd1 {[%clk 0:00:05]}  Rf6 {[%clk 0:00:09]} 35. b3 {[%clk 0:00:05]}  h6 {[%clk 0:00:08]} 36. Kf2 {[%clk 0:00:04]}  g5 {[%clk 0:00:08]} 37. g3 {[%clk 0:00:04]}  Ng6 {[%clk 0:00:09]} 38. Nd5 {[%clk 0:00:04]}  Rf7 {[%clk 0:00:09]} 39. Nc3 {[%clk 0:00:04]}  gxf4 {[%clk 0:00:09]} 40. gxf4 {[%clk 0:00:05]}  Nxf4 {[%clk 0:00:10]} 41. Rg1 {[%clk 0:00:04]}  Bd7 {[%clk 0:00:05]} 42. Ne2 {[%clk 0:00:04]}  Ne6 {[%clk 0:00:05]} 43. Rd3 {[%clk 0:00:04]}  Nc5 {[%clk 0:00:04]} 44. Re3 {[%clk 0:00:03]}  Ne4+ {[%clk 0:00:04]} 45. Ke1 {[%clk 0:00:03]}  Bc6 {[%clk 0:00:04]} 46. Nc3 {[%clk 0:00:03]}  Nf6 {[%clk 0:00:03]} 47. Kd2 {[%clk 0:00:02]}  Ng4 {[%clk 0:00:03]} 48. Re2 {[%clk 0:00:02]}  Ne5 {[%clk 0:00:03]} 49. Rf1 {[%clk 0:00:02]}  Nf3+ {[%clk 0:00:02]} 50. Kc2 {[%clk 0:00:03]}  Nd4+ {[%clk 0:00:03]} 51. Kd2 {[%clk 0:00:03]}  Nxe2 {[%clk 0:00:03]} 52. Nxe2 {[%clk 0:00:04]}  Bd7 {[%clk 0:00:02]} 53. Rf4 {[%clk 0:00:04]}  Kg7 {[%clk 0:00:03]} 54. a4 {[%clk 0:00:05]}  Kf6 {[%clk 0:00:03]} 55. Ke3 {[%clk 0:00:04]}  Re7+ {[%clk 0:00:04]} 56. Kf2 {[%clk 0:00:05]}  Re5 {[%clk 0:00:02]} 57. Nc3 {[%clk 0:00:04]}  Be6 {[%clk 0:00:01]} 58. Rd4 {[%clk 0:00:04]}  Kg5 {[%clk 0:00:01]} 59. Rxd6 {[%clk 0:00:04]}  f4 {[%clk 0:00:02]} 60. Rd3 {[%clk 0:00:04]}  Bf5 {[%clk 0:00:01]} 61. Rd4 {[%clk 0:00:04]}  Re3 {[%clk 0:00:01]} 62. Nd5 {[%clk 0:00:05]}  Rxb3 {[%clk 0:00:02]} 63. Nxf4 {[%clk 0:00:05]}  Rb2+ {[%clk 0:00:02]} 64. Ne2 {[%clk 0:00:05]}  Bg4 {[%clk 0:00:02]} 65. Re4 {[%clk 0:00:05]}  Bf5 {[%clk 0:00:02]} 66. Re3 {[%clk 0:00:06]}  Rb4 {[%clk 0:00:02]} 67. Rc3 {[%clk 0:00:05]}  Rxa4 {[%clk 0:00:02]} 68. Ke3 {[%clk 0:00:06]}  Ra8 {[%clk 0:00:02]} 69. c5 {[%clk 0:00:06]}  Re8+ {[%clk 0:00:03]} 70. Kf2 {[%clk 0:00:06]}  Bc8 {[%clk 0:00:01]} 71. Nd4 {[%clk 0:00:07]}  Kf4 {[%clk 0:00:01]} 72. c6 {[%clk 0:00:06]}  Rf8 {[%clk 0:00:01]} 73. Rf3+ {[%clk 0:00:06]} 1-0


[Site "https://www.chess.com"]

[Event "Titled Tuesday Blitz August 09 Late 2022"]
[White "Esipenko, Andrey"]
[Black "Hakobyan, Aram"]
[WhiteFideId "24175439"]
[BlackFideId "13306677"]
[WhiteElo "2619"]
[BlackElo "2557"]
[Result "1/2-1/2"]
[Round "09"]
[TimeControl "180+1"]
[Date "2022.08.09"]
[WhiteClock "0:00:02"]
[BlackClock "0:00:06"]

1. e4 {[%clk 0:03:00]}  c5 {[%clk 0:02:59]} 2. Nf3 {[%clk 0:03:01]}  Nc6 {[%clk 0:02:59]} 3. d4 {[%clk 0:02:58]}  cxd4 {[%clk 0:02:59]} 4. Nxd4 {[%clk 0:02:58]}  Qb6 {[%clk 0:02:59]} 5. Nb3 {[%clk 0:02:58]}  Nf6 {[%clk 0:02:59]} 6. Nc3 {[%clk 0:02:58]}  e6 {[%clk 0:03:00]} 7. a3 {[%clk 0:02:59]}  a6 {[%clk 0:02:59]} 8. Be3 {[%clk 0:02:58]}  Qc7 {[%clk 0:03:00]} 9. f4 {[%clk 0:02:57]}  d6 {[%clk 0:03:00]} 10. Qe2 {[%clk 0:02:57]}  b5 {[%clk 0:02:58]} 11. g4 {[%clk 0:02:57]}  Bb7 {[%clk 0:02:58]} 12. g5 {[%clk 0:02:57]}  Nd7 {[%clk 0:02:58]} 13. h4 {[%clk 0:02:57]}  Nc5 {[%clk 0:02:57]} 14. Bg2 {[%clk 0:02:56]}  Be7 {[%clk 0:02:55]} 15. O-O {[%clk 0:02:55]}  O-O {[%clk 0:02:50]} 16. Rad1 {[%clk 0:02:54]}  Rfe8 {[%clk 0:02:48]} 17. Qf2 {[%clk 0:02:50]}  Nxb3 {[%clk 0:02:31]} 18. cxb3 {[%clk 0:02:51]}  Bf8 {[%clk 0:02:32]} 19. b4 {[%clk 0:02:49]}  Rac8 {[%clk 0:02:31]} 20. h5 {[%clk 0:02:48]}  g6 {[%clk 0:02:29]} 21. h6 {[%clk 0:02:48]}  Ne7 {[%clk 0:01:55]} 22. Bd4 {[%clk 0:02:40]}  d5 {[%clk 0:01:55]} 23. Be5 {[%clk 0:02:29]}  Qc4 {[%clk 0:01:51]} 24. Rd4 {[%clk 0:01:52]}  Qb3 {[%clk 0:01:50]} 25. exd5 {[%clk 0:01:52]}  exd5 {[%clk 0:01:50]} 26. Bh3 {[%clk 0:01:50]}  Rc4 {[%clk 0:01:48]} 27. Bf6 {[%clk 0:01:13]}  Nf5 {[%clk 0:01:39]} 28. Bxf5 {[%clk 0:01:12]}  gxf5 {[%clk 0:01:40]} 29. Rfd1 {[%clk 0:01:09]}  a5 {[%clk 0:01:35]} 30. Be5 {[%clk 0:00:43]}  axb4 {[%clk 0:01:33]} 31. axb4 {[%clk 0:00:44]}  Qxb4 {[%clk 0:01:19]} 32. Kh2 {[%clk 0:00:30]}  Bc5 {[%clk 0:01:12]} 33. Rxc4 {[%clk 0:00:29]}  Qxc4 {[%clk 0:01:13]} 34. Bd4 {[%clk 0:00:29]}  Bf8 {[%clk 0:01:12]} 35. Rd2 {[%clk 0:00:26]}  b4 {[%clk 0:01:10]} 36. Ne2 {[%clk 0:00:26]}  b3 {[%clk 0:00:57]} 37. Ng3 {[%clk 0:00:23]}  Bb4 {[%clk 0:00:49]} 38. Nh5 {[%clk 0:00:18]}  Bxd2 {[%clk 0:00:46]} 39. Nf6+ {[%clk 0:00:18]}  Kf8 {[%clk 0:00:46]} 40. Nxh7+ {[%clk 0:00:19]}  Ke7 {[%clk 0:00:47]} 41. Qxd2 {[%clk 0:00:19]}  Kd6 {[%clk 0:00:42]} 42. Be5+ {[%clk 0:00:16]}  Rxe5 {[%clk 0:00:32]} 43. fxe5+ {[%clk 0:00:16]}  Ke7 {[%clk 0:00:33]} 44. Qf2 {[%clk 0:00:12]}  d4 {[%clk 0:00:29]} 45. Nf6 {[%clk 0:00:13]}  Qc1 {[%clk 0:00:29]} 46. h7 {[%clk 0:00:10]}  f4 {[%clk 0:00:23]} 47. Kh3 {[%clk 0:00:08]}  Bc8+ {[%clk 0:00:10]} 48. e6 {[%clk 0:00:08]}  Bxe6+ {[%clk 0:00:10]} 49. Kh2 {[%clk 0:00:08]}  Qc2 {[%clk 0:00:07]} 50. Qxc2 {[%clk 0:00:06]}  bxc2 {[%clk 0:00:07]} 51. h8=Q {[%clk 0:00:06]}  c1=Q {[%clk 0:00:08]} 52. Qe8+ {[%clk 0:00:05]}  Kd6 {[%clk 0:00:08]} 53. Qd8+ {[%clk 0:00:02]}  Ke5 {[%clk 0:00:09]} 54. Qb8+ {[%clk 0:00:02]}  Kf5 {[%clk 0:00:09]} 55. Qb5+ {[%clk 0:00:02]}  Kg6 {[%clk 0:00:08]} 56. Qd3+ {[%clk 0:00:03]}  Kxg5 {[%clk 0:00:07]} 57. Ne4+ {[%clk 0:00:04]}  Kh4 {[%clk 0:00:07]} 58. Qxd4 {[%clk 0:00:04]}  Qc2+ {[%clk 0:00:02]} 59. Nf2 {[%clk 0:00:04]}  Qf5 {[%clk 0:00:01]} 60. b4 {[%clk 0:00:04]}  Qg5 {[%clk 0:00:02]} 61. Qh8+ {[%clk 0:00:03]}  Qh5 {[%clk 0:00:02]} 62. Qa1 {[%clk 0:00:02]}  Kg5+ {[%clk 0:00:02]} 63. Kg1 {[%clk 0:00:02]}  Kh6 {[%clk 0:00:03]} 64. Qh8+ {[%clk 0:00:02]}  Kg5 {[%clk 0:00:03]} 65. Ne4+ {[%clk 0:00:02]}  Kh4 {[%clk 0:00:03]} 66. Qf6+ {[%clk 0:00:02]}  Kh3 {[%clk 0:00:03]} 67. Qxf4 {[%clk 0:00:02]}  Qg4+ {[%clk 0:00:03]} 68. Qxg4+ {[%clk 0:00:01]}  Kxg4 {[%clk 0:00:04]} 69. b5 {[%clk 0:00:01]}  Kf4 {[%clk 0:00:04]} 70. b6 {[%clk 0:00:02]}  Bd5 {[%clk 0:00:04]} 71. Nd6 {[%clk 0:00:02]}  Ke5 {[%clk 0:00:04]} 72. Nxf7+ {[%clk 0:00:02]}  Ke6 {[%clk 0:00:04]} 73. Nd8+ {[%clk 0:00:02]}  Kd7 {[%clk 0:00:05]} 74. Ne6 {[%clk 0:00:01]}  Kxe6 {[%clk 0:00:05]} 75. b7 {[%clk 0:00:02]}  Bxb7 {[%clk 0:00:06]} 1/2-1/2


[Site "https://www.chess.com"]